lending/lending_fUSD_20250429
["ID","MTS","AMOUNT","RATE_DAILY","PERIOD"]
[359277639,1745889044984,-470.0,0.00035616,6]
[359277640,1745889044994,-470.0,0.00035616,6]
[359277641,1745889045004,-713.94,0.00035616,6]
[359277642,1745889045014,-500.0,0.00035616,6]
[359277643,1745889045024,-517.76,0.00035616,6]
[359277644,1745889045034,-478.46,0.00035616,6]
[359277645,1745889045044,-597.96092439,0.00035616,6]
[359277646,1745889045053,-908.95,0.00035616,6]
[359277647,1745889045063,-221.11005959,0.00035616,6]
[359277648,1745889045072,-470.0,0.00035616,6]
[359277649,1745889045081,-470.0,0.00035616,6]
[359277650,1745889045090,-619.96,0.00035616,6]
[359277651,1745889045100,-470.0,0.00035616,6]
[359277652,1745889045109,-556.76,0.00035616,6]
[359277653,1745889045119,-470.0,0.00035616,6]
[359277654,1745889045129,-104172.26079762,0.00035616,6]
[359277656,1745889045867,-1000.0,0.00035616,6]
[359277657,1745889045879,-459.67004809,0.00035616,6]
[359277658,1745889045932,-2549.05889236,0.00035616,6]
[359277659,1745889045995,-11196.75133091,0.00035616,6]
[359277664,1745889047060,-693.28,0.00027397,2]
[359277665,1745889047069,-693.28,0.00033165,2]
[359277666,1745889047078,-521.22,0.00035616,6]
[359277667,1745889047088,-470.0,0.00035616,6]
[359277668,1745889047097,-600.89,0.00035616,6]
[359277669,1745889047106,-726.48,0.00035616,6]
[359277670,1745889047115,-828.85,0.00035616,6]
[359277671,1745889047124,-470.0,0.00035616,6]
[359277672,1745889047133,-470.0,0.00035616,6]
[359277673,1745889047143,-470.0,0.00035616,6]
[359277674,1745889047152,-470.0,0.00035616,6]
[359277675,1745889047161,-589.75,0.00035616,6]
[359277676,1745889047171,-470.0,0.00035616,6]
[359277677,1745889047180,-470.0,0.00035616,6]
[359277678,1745889047189,-470.0,0.00035616,6]
[359277679,1745889047199,-470.0,0.00035616,6]
[359277680,1745889047208,-559.15879186,0.00035616,6]
[359277681,1745889047809,-184.38120814,0.00035616,6]
[359277682,1745889047819,-470.0,0.00035616,6]
[359277683,1745889047828,-850.99041192,0.00035616,6]
[359277684,1745889047921,-234.19958808,0.00035616,6]
[359277685,1745889047930,-598.34,0.00035616,6]
[359277686,1745889047939,-326.50329479,0.00035616,6]
[359277687,1745889065181,1000.0,0.00038356,30]
[359277688,1745889108347,1000.0,0.00038356,30]
[359277689,1745889294174,651.22,0.00038356,30]
[359277690,1745889509988,420.555,0.00035605,42]
[359277691,1745889685472,1539.0,0.00038356,30]
[359277692,1745889722024,200.0,0.00036064,117]
[359277693,1745889722094,200.0,0.00033346,117]
[359277694,1745889998584,150.0,0.00019305,2]
[359277695,1745890022353,250.0,0.00017,2]
[359277696,1745890065970,210.0,0.00038356,30]
[359277712,1745890232229,-1348.16384016,0.000199,2]
[359277713,1745890232242,-1191.94685526,0.000199,2]
[359277714,1745890232266,-1655.93183547,0.000199,2]
[359277715,1745890232276,-250.0,0.0001994,2]
[359277716,1745890232286,-250.0,0.00019976,2]
[359277717,1745890232296,-1200.0,0.00019979,2]
[359277718,1745890232306,-300.0,0.00019979,2]
[359277719,1745890232315,-39540.65050056,0.0001998,2]
[359277720,1745890232325,-500.0,0.00019999,2]
[359277721,1745890232334,-633.42682565,0.00019999,2]
[359277722,1745890232344,-23758.25753418,0.0002,2]
[359277723,1745890232415,-2005.01203449,0.0002,2]
[359277724,1745890232428,-1879.44851879,0.0002,2]
[359277725,1745890232464,-1624.61584271,0.0002,2]
[359277726,1745890232476,-101126.75053396,0.0002,2]
[359277727,1745890232487,-4790.93452644,0.0002,2]
[359277744,1745890238187,-1083.42018,0.0002,2]
[359277745,1745890238199,-1774.09999999,0.0002,2]
[359277746,1745890238210,-1113.25646616,0.0002,2]
[359277747,1745890238221,-2355.93323927,0.0002,2]
[359277748,1745890238232,-263.87137854,0.0002,2]
[359277749,1745890238346,-193.71309289,0.00019999,2]
[359277750,1745890238355,-750.90602913,0.0002,2]
[359277751,1745890238396,-811.74884331,0.0002,2]
[359277752,1745890238407,-4452.83821955,0.0002,2]
[359277753,1745890238418,-10996.23860823,0.0002,2]
[359277754,1745890238448,-19674.61174783,0.0002,2]
[359277755,1745890238457,-59016.52037728,0.0002,4]
[359277756,1745890238467,-3950.0,0.0002,2]
[359277757,1745890238477,-1251.35291685,0.0002,2]
[359277758,1745890238487,-11838.91693718,0.0002,2]
[359277759,1745890238497,-1009.68656639,0.0002,2]
[359277760,1745890238507,-1759.87699277,0.0002,2]
[359277761,1745890238517,-5772.0,0.0002001,2]
[359277762,1745890238527,-500.0,0.000201,2]
[359277763,1745890238537,-500.0,0.000201,2]
[359277764,1745890238547,-552.6090731,0.000201,2]
[359277765,1745890238556,-500.0,0.000201,2]
[359277766,1745890238568,-286957.40453109,0.0002018,2]
[359277767,1745890238577,-6674.04067685,0.00021,3]
[359277768,1745890238587,-6674.04067668,0.00021,3]
[359277769,1745890238596,-6674.04067668,0.00021693,3]
[359277770,1745890238606,-4196.04253082,0.00021726,2]
[359277771,1745890238615,-250.0,0.0002189,2]
[359277772,1745890238625,-6674.04067668,0.0002259,4]
[359277773,1745890238637,-6674.04067668,0.00023486,4]
[359277774,1745890238648,-4196.04253082,0.00023553,2]
[359277775,1745890238659,-6674.04067668,0.00024383,5]
[359277776,1745890238669,-6674.04067668,0.00025279,5]
[359277777,1745890238679,-4196.04253082,0.00025379,2]
[359277778,1745890238689,-1000.0,0.00025579,2]
[359277779,1745890238701,-579.77007519,0.00025579,2]
[359277780,1745890238711,-1000.0,0.00025579,2]
[359277781,1745890238721,-6674.04067668,0.00026176,6]
[359277782,1745890238730,-6674.04067668,0.00027072,7]
[359277783,1745890238740,-4196.04253082,0.00027206,2]
[359277784,1745890238750,-470.0,0.00027397,2]
[359277785,1745890238759,-386.87985327,0.00027397,2]
[359277786,1745890238769,-470.0,0.00027397,2]
[359277787,1745890238779,-470.0,0.00027397,2]
[359277788,1745890238789,-470.0,0.00027397,2]
[359277789,1745890238799,-502.37309275,0.00027397,2]
[359277790,1745890238808,-603.63,0.00027397,2]
[359277791,1745890238818,-560.4687338,0.00027397,2]
[359277792,1745890238828,-470.0,0.00027397,2]
[359277793,1745890238838,-470.0,0.00027397,2]
[359277794,1745890238847,-398.84591847,0.00027397,2]
[359277795,1745890238857,-470.0,0.00027397,2]
[359277796,1745890238866,-470.0,0.00027397,2]
[359277797,1745890238876,-623.95,0.00027397,2]
[359277798,1745890238885,-470.0,0.00027671,2]
[359277799,1745890238895,-470.0,0.00027671,2]
[359277800,1745890238904,-470.0,0.00027671,2]
[359277801,1745890238913,-470.0,0.00027671,2]
[359277802,1745890238923,-603.63,0.00027671,2]
[359277803,1745890238932,-470.0,0.00027671,2]
[359277804,1745890238942,-470.0,0.00027671,2]
[359277805,1745890238951,-431.26745279,0.00027671,2]
[359277807,1745890238960,-470.0,0.00027671,2]
[359277809,1745890238970,-470.0,0.00027945,2]
[359277810,1745890238979,-470.0,0.00027945,2]
[359277811,1745890238988,-470.0,0.00027945,2]
[359277812,1745890238998,-470.0,0.00027945,2]
[359277813,1745890239007,-603.63,0.00027945,2]
[359277814,1745890239017,-470.0,0.00027945,2]
[359277815,1745890239026,-470.0,0.00027945,2]
[359277816,1745890239036,-470.0,0.00027945,2]
[359277818,1745890239046,-6674.04067668,0.00027969,7]
[359277820,1745890239055,-470.0,0.00028219,2]
[359277822,1745890239065,-470.0,0.00028219,2]
[359277824,1745890239074,-470.0,0.00028219,2]
[359277826,1745890239084,-550.22235076,0.00028219,2]
[359277828,1745890239093,-603.63,0.00028219,2]
[359277830,1745890239103,-470.0,0.00028219,2]
[359277832,1745890239112,-470.0,0.00028219,2]
[359277834,1745890239121,-263.39233619,0.00028219,2]
[359277836,1745890239130,-470.0,0.00028493,2]
[359277838,1745890239139,-470.0,0.00028493,2]
[359277840,1745890239149,-470.0,0.00028493,2]
[359277842,1745890239158,-603.63,0.00028493,2]
[359277844,1745890239167,-470.0,0.00028493,2]
[359277846,1745890239177,-470.0,0.00028493,2]
[359277848,1745890239186,-470.0,0.00028767,2]
[359277850,1745890239195,-470.0,0.00028767,2]
[359277851,1745890239205,-470.0,0.00028767,2]
[359277852,1745890239214,-603.63,0.00028767,2]
[359277854,1745890239223,-470.0,0.00028767,2]
[359277856,1745890239232,-470.0,0.00028767,2]
[359277858,1745890239242,-6674.04067668,0.00028866,8]
[359277860,1745890239252,-4196.04253082,0.00029032,2]
[359277862,1745890239261,-470.0,0.00029041,2]
[359277864,1745890239271,-470.0,0.00029041,2]
[359277866,1745890239280,-470.0,0.00029041,2]
[359277868,1745890239290,-603.63,0.00029041,2]
[359277870,1745890239299,-470.0,0.00029041,2]
[359277872,1745890239308,-470.0,0.00029041,2]
[359277874,1745890239318,-470.0,0.00029315,2]
[359277876,1745890239327,-470.0,0.00029315,2]
[359277878,1745890239336,-470.0,0.00029315,2]
[359277880,1745890239346,-603.63,0.00029315,2]
[359277882,1745890239355,-434.3220474,0.00029315,2]
[359277884,1745890239364,-470.0,0.00029315,2]
[359277886,1745890239374,-470.0,0.00029589,2]
[359277888,1745890239385,-470.0,0.00029589,2]
[359277890,1745890239395,-470.0,0.00029589,2]
[359277892,1745890239404,-603.63,0.00029589,2]
[359277894,1745890239413,-470.0,0.00029589,2]
[359277896,1745890239422,-6674.04067668,0.00029762,8]
[359277898,1745890239432,-470.0,0.00029863,2]
[359277900,1745890239442,-470.0,0.00029863,2]
[359277902,1745890239452,-470.0,0.00029863,2]
[359277904,1745890239463,-603.63,0.00029863,2]
[359277906,1745890239473,-470.0,0.00029863,2]
[359277908,1745890239483,-470.0,0.00030136,2]
[359277910,1745890239492,-470.0,0.00030136,2]
[359277912,1745890239503,-470.0,0.00030136,2]
[359277914,1745890239513,-603.63,0.00030136,2]
[359277916,1745890239522,-470.0,0.00030136,2]
[359277918,1745890239531,-470.0,0.0003041,2]
[359277935,1745890239541,-470.0,0.0003041,2]
[359277936,1745890239721,-470.0,0.0003041,2]
[359277937,1745890239732,-603.63,0.0003041,2]
[359277938,1745890239742,-470.0,0.0003041,2]
[359277939,1745890239752,-6674.04067668,0.00030659,9]
[359277940,1745890239763,-470.0,0.00030684,2]
[359277941,1745890239774,-470.0,0.00030684,2]
[359277942,1745890239784,-470.0,0.00030684,2]
[359277943,1745890239794,-603.63,0.00030684,2]
[359277944,1745890239804,-470.0,0.00030684,2]
[359277945,1745890239815,-4196.04253082,0.00030859,2]
[359277946,1745890239826,-470.0,0.00030958,2]
[359277947,1745890239845,-470.0,0.00030958,2]
[359277948,1745890239855,-470.0,0.00030958,2]
[359277949,1745890239865,-603.63,0.00030958,2]
[359277950,1745890239875,-470.0,0.00030958,2]
[359277951,1745890239885,-470.0,0.00031232,2]
[359277952,1745890239895,-470.0,0.00031232,2]
[359277953,1745890239904,-470.0,0.00031232,2]
[359277954,1745890239913,-470.0,0.00031232,2]
[359277955,1745890239923,-470.0,0.00031506,2]
[359277956,1745890239932,-470.0,0.00031506,2]
[359277957,1745890239942,-470.0,0.00031506,2]
[359277958,1745890239951,-470.0,0.00031506,2]
[359277959,1745890239960,-6674.04067668,0.00031555,10]
[359277960,1745890239970,-470.0,0.0003178,2]
[359277961,1745890239980,-612.79196455,0.0003178,2]
[359277962,1745890239989,-470.0,0.0003178,2]
[359277963,1745890239999,-470.0,0.0003178,2]
[359277964,1745890240011,-2000.0,0.0003196,4]
[359277965,1745890240021,-470.0,0.00032054,2]
[359277966,1745890240031,-373.07778272,0.00032054,2]
[359277967,1745890240040,-470.0,0.00032328,2]
[359277968,1745890240050,-6674.04067668,0.00032452,10]
[359277969,1745890240060,-512.81114068,0.00032602,2]
[359277971,1745890240070,-4196.04253082,0.00032685,2]
[359277973,1745890240079,-2000.0,0.00032764,4]
[359277974,1745890240089,-584.64,0.00032786,2]
[359277975,1745890240098,-718785.63520206,0.00033,2]
[359277976,1745890240107,-199024.0,0.00033,2]
[359277977,1745890240116,-623.95,0.00033165,2]
[359277978,1745890240126,-5569.0,0.000333,3]
[359277979,1745890240135,-6674.04067668,0.00033348,11]
[359277980,1745890240145,-5569.0,0.000335,5]
[359277981,1745890240154,-2000.0,0.00033568,4]
[359277982,1745890240163,-207.4,0.00033906,2]
[359277983,1745890240172,-154.74,0.00034,2]
[359277984,1745890240182,-1000.0,0.00034065,2]
[359277985,1745890240191,-183.23,0.00034065,2]
[359277986,1745890240201,-378.2430825,0.00034095,4]
[359277987,1745890240210,-6674.04067668,0.00034245,11]
[359277988,1745890240219,-150.0,0.00034288,2]
[359277989,1745890240228,-2000.0,0.00034372,4]
[359277990,1745890240237,-396.48,0.00034436,2]
[359277991,1745890240246,-187.37,0.00034447,2]
[359277992,1745890240258,-4196.04253082,0.00034512,2]
[359277993,1745890240268,-324.0,0.00034795,2]
[359277994,1745890240277,-150.0,0.00034795,2]
[359277995,1745890240287,-351.59,0.00034795,2]
[359277996,1745890240296,-150.0,0.00034795,2]
[359277997,1745890240306,-162.0,0.00034795,2]
[359277998,1745890240315,-351.59,0.00034795,2]
[359277999,1745890240324,-300.0,0.00034795,2]
[359278000,1745890240333,-452.91496516,0.00034899,15]
[359278001,1745890240342,-362.25585594,0.00034899,2]
[359278002,1745890240352,-1000.0,0.000349,2]
[359278003,1745890240361,-2500.0,0.000349,2]
[359278004,1745890240371,-34985.1991133,0.00034989,2]
[359278005,1745890240380,-1828.0,0.00035,2]
[359278006,1745890240392,-1828.0,0.00035,2]
[359278007,1745890240401,-1828.0,0.00035,2]
[359278008,1745890240410,-1828.0,0.00035,2]
[359278009,1745890240419,-1828.0,0.00035,2]
[359278010,1745890240428,-1828.0,0.00035,2]
[359278011,1745890240437,-1828.0,0.00035,2]
[359278012,1745890240446,-1828.0,0.00035,2]
[359278013,1745890240456,-1828.0,0.00035,2]
[359278014,1745890240465,-1828.0,0.00035,2]
[359278015,1745890240475,-584.64,0.00035049,2]
[359278016,1745890240485,-158.37,0.00035087,2]
[359278017,1745890240494,-155.15523695,0.00035104,9]
[359278018,1745890240503,-34985.1991133,0.00035131,2]
[359278019,1745890240512,-6674.04067668,0.00035141,12]
[359278020,1745890240521,-2000.0,0.00035176,4]
[359278021,1745890240531,-150.0,0.00035203,2]
[359278022,1745890240540,-215.0738,0.00035275,2]
[359278023,1745890240550,-452.91496509,0.00035332,15]
[359278024,1745890240560,-362.25585589,0.00035433,2]
[359278025,1745890240570,-6193.0,0.00035449,2]
[359278026,1745890240579,-920.0,0.00035449,2]
[359278027,1745890240591,-153.0,0.00035449,2]
[359278028,1745890240601,-3996.0,0.00035449,2]
[359278029,1745890240612,-1336.0,0.00035449,2]
[359278030,1745890240623,-888.816,0.00035449,2]
[359278031,1745890240633,-877.0,0.00035449,2]
[359278032,1745890240643,-155.15523695,0.00035495,9]
[359278033,1745890240652,-4873.55331364,0.00035505,2]
[359278034,1745890240662,-214.90806413,0.00035505,2]
[359278035,1745890240671,-1762.273,0.00035505,2]
[359278036,1745890240680,-3366.8658,0.00035505,2]
[359278037,1745890240690,-1000.0,0.00035506,2]
[359278038,1745890240699,-5659.42,0.00035506,2]
[359278039,1745890240708,-470.0,0.00035515,2]
[359278040,1745890240718,-485.76,0.00035515,2]
[359278041,1745890240728,-578.95,0.00035515,2]
[359278042,1745890240737,-470.0,0.00035515,2]
[359278043,1745890240747,-860.93,0.00035515,2]
[359278044,1745890240756,-676.08,0.00035515,2]
[359278045,1745890240765,-747.99,0.00035515,2]
[359278046,1745890240775,-470.0,0.00035515,2]
[359278047,1745890240785,-1089.75,0.00035515,2]
[359278048,1745890240794,-670.85,0.00035515,2]
[359278049,1745890240803,-470.0,0.00035515,2]
[359278050,1745890240812,-1003.61,0.00035515,2]
[359278051,1745890240822,-933.43,0.00035515,2]
[359278052,1745890240831,-761.3,0.00035515,2]
[359278053,1745890240840,-1310.34,0.00035515,2]
[359278054,1745890240849,-774.02,0.00035515,2]
[359278055,1745890240858,-682.86,0.00035515,2]
[359278056,1745890240868,-655.69,0.00035515,2]
[359278057,1745890240877,-511.94,0.00035515,2]
[359278058,1745890240886,-1124.34,0.00035515,2]
[359278059,1745890240895,-9867.21,0.00035515,2]
[359278060,1745890240904,-470.0,0.00035515,2]
[359278061,1745890240913,-500.19,0.00035515,2]
[359278062,1745890240922,-922.31,0.00035515,2]
[359278063,1745890240932,-530.25,0.00035515,2]
[359278065,1745890240941,-1528.52,0.00035515,2]
[359278067,1745890240950,-166.675125,0.00035515,2]
[359278069,1745890240959,-559.92,0.00035515,2]
[359278071,1745890240969,-7137.55,0.00035515,2]
[359278073,1745890240978,-5786.182572,0.00035515,2]
[359278075,1745890240988,-17322.9097,0.00035516,2]
[359278077,1745890240997,-415.76577428,0.00035585,2]
[359278079,1745890241007,-154.74,0.00035585,2]
[359278081,1745890241017,-154.74,0.00035586,2]
[359278083,1745890241026,-226.20042071,0.00035595,2]
[359278085,1745890241035,-34985.1991133,0.00035595,2]
[359278087,1745890241044,-151.0,0.00035595,7]
[359278089,1745890241053,-151.0,0.00035595,7]
[359278091,1745890241062,-103483.80225005,0.00035595,2]
[359278124,1745890241562,-343.28968055,0.00027397,2]
[359278125,1745890241574,-151.80031945,0.00027397,2]
[359278126,1745890241584,-199.61008061,0.00027671,2]
[359278127,1745890241598,-295.47991939,0.00027671,2]
[359278128,1745890241608,-495.09,0.00027945,2]
[359278129,1745890241618,-495.09,0.00028219,2]
[359278130,1745890241628,-495.09,0.00028493,2]
[359278131,1745890241637,-495.09,0.00028767,2]
[359278132,1745890241647,-495.09,0.00029041,2]
[359278133,1745890241656,-495.09,0.00029315,2]
[359278134,1745890241666,-470.0,0.00032054,2]
[359278135,1745890241676,-470.0,0.00032328,2]
[359278136,1745890241685,-470.0,0.00032602,2]
[359278137,1745890241695,-380.19557558,0.00032876,2]
[359278138,1745890241705,-470.0,0.00035515,2]
[359278139,1745890241715,-106427.39242995,0.00035595,2]
[359278140,1745890241725,-190250.030856,0.00035595,2]
[359278141,1745890241735,-34985.1991133,0.00035595,2]
[359278142,1745890241744,-104955.59734,0.00035596,2]
[359278143,1745890241754,-135892.879183,0.00035596,2]
[359278144,1745890241763,-154.74,0.00035596,2]
[359278145,1745890241773,-4873.55331356,0.00035598,2]
[359278146,1745890241783,-1271.06996265,0.00035598,5]
[359278147,1745890241792,-1500.0,0.00035598,2]
[359278148,1745890241802,-1007.62646762,0.000356,2]
[359278149,1745890241811,-300.0,0.00035605,10]
[359278150,1745890241821,-470.0,0.00035605,2]
[359278151,1745890241831,-813.01,0.00035605,2]
[359278152,1745890241841,-679.4,0.00035605,2]
[359278153,1745890241850,-470.0,0.00035605,2]
[359278154,1745890241859,-1604.33,0.00035605,2]
[359278155,1745890241869,-470.0,0.00035605,2]
[359278156,1745890241879,-771.09,0.00035605,2]
[359278157,1745890241888,-470.0,0.00035605,2]
[359278158,1745890241898,-470.0,0.00035605,2]
[359278159,1745890241907,-557.37,0.00035605,2]
[359278160,1745890241917,-470.0,0.00035605,2]
[359278161,1745890241926,-470.0,0.00035605,2]
[359278162,1745890241936,-470.0,0.00035605,2]
[359278163,1745890241945,-1772.11,0.00035605,2]
[359278164,1745890241956,-263.92302896,0.00035605,2]
[359278165,1745890241966,-470.0,0.00035605,2]
[359278166,1745890241976,-470.0,0.00035605,2]
[359278167,1745890241986,-470.0,0.00035605,2]
[359278168,1745890241995,-470.0,0.00035605,2]
[359278169,1745890242005,-470.0,0.00035605,2]
[359278170,1745890242014,-470.0,0.00035605,2]
[359278171,1745890242023,-487.63,0.00035605,2]
[359278172,1745890242032,-1091.11,0.00035605,2]
[359278173,1745890242042,-470.0,0.00035605,2]
[359278174,1745890242051,-1150.92,0.00035605,2]
[359278175,1745890242061,-482.84,0.00035605,2]
[359278176,1745890242070,-470.0,0.00035605,2]
[359278177,1745890242079,-498.5,0.00035605,2]
[359278178,1745890242089,-470.0,0.00035605,2]
[359278179,1745890242098,-470.0,0.00035605,2]
[359278180,1745890242108,-526.0,0.00035605,2]
[359278181,1745890242118,-883.93,0.00035605,2]
[359278182,1745890242127,-604.57,0.00035605,2]
[359278183,1745890242137,-470.0,0.00035605,2]
[359278184,1745890242147,-470.0,0.00035605,2]
[359278185,1745890242156,-470.0,0.00035605,2]
[359278186,1745890242165,-470.0,0.00035605,2]
[359278187,1745890242175,-495.97,0.00035605,2]
[359278188,1745890242184,-470.0,0.00035605,2]
[359278189,1745890242194,-470.0,0.00035605,2]
[359278190,1745890242203,-488.71,0.00035605,2]
[359278191,1745890242352,-470.0,0.00035605,2]
[359278192,1745890242383,-2373.81,0.00035605,2]
[359278193,1745890242394,-470.0,0.00035605,2]
[359278194,1745890242403,-649.81,0.00035605,2]
[359278195,1745890242412,-470.0,0.00035605,2]
[359278196,1745890242421,-470.0,0.00035605,2]
[359278197,1745890242431,-470.0,0.00035605,2]
[359278198,1745890242442,-495.83,0.00035605,2]
[359278199,1745890242452,-470.0,0.00035605,2]
[359278200,1745890242463,-470.0,0.00035605,2]
[359278201,1745890242473,-688.46,0.00035605,2]
[359278202,1745890242483,-582.78,0.00035605,2]
[359278203,1745890242492,-470.0,0.00035605,2]
[359278204,1745890242502,-470.0,0.00035605,2]
[359278205,1745890242513,-684.29,0.00035605,2]
[359278206,1745890242522,-470.0,0.00035605,2]
[359278207,1745890242532,-470.0,0.00035605,2]
[359278208,1745890242543,-470.0,0.00035605,2]
[359278209,1745890242552,-516.77,0.00035605,2]
[359278210,1745890242561,-915.23,0.00035605,2]
[359278211,1745890242571,-494.16,0.00035605,2]
[359278212,1745890242581,-704.9,0.00035605,2]
[359278213,1745890242590,-470.0,0.00035605,2]
[359278214,1745890242600,-470.0,0.00035605,2]
[359278215,1745890242610,-470.0,0.00035605,2]
[359278216,1745890242619,-151.0,0.00035605,7]
[359278217,1745890242629,-470.0,0.00035605,2]
[359278218,1745890242638,-470.0,0.00035605,2]
[359278219,1745890242647,-470.0,0.00035605,2]
[359278220,1745890242657,-572.59,0.00035605,2]
[359278221,1745890242666,-470.0,0.00035605,2]
[359278222,1745890242676,-562.25,0.00035605,2]
[359278223,1745890242685,-470.0,0.00035605,2]
[359278224,1745890242695,-573.57,0.00035605,2]
[359278225,1745890242704,-470.0,0.00035605,2]
[359278226,1745890242714,-470.0,0.00035605,2]
[359278227,1745890242724,-470.0,0.00035605,2]
[359278228,1745890242734,-470.0,0.00035605,2]
[359278229,1745890242743,-153.63006124,0.00035605,2]
[359278230,1745890242753,-1912.84,0.00035605,2]
[359278231,1745890242765,-601.37,0.00035605,2]
[359278232,1745890242775,-470.0,0.00035605,2]
[359278233,1745890242784,-521.05,0.00035605,2]
[359278234,1745890242794,-492.03,0.00035605,2]
[359278235,1745890242804,-470.0,0.00035605,2]
[359278236,1745890242814,-697.27,0.00035605,2]
[359278237,1745890242824,-470.0,0.00035605,2]
[359278238,1745890242833,-462.14743606,0.00035605,2]
[359278239,1745890242843,-470.0,0.00035605,2]
[359278240,1745890242857,-849.04,0.00035605,2]
[359278241,1745890242867,-496.0,0.00035605,7]
[359278242,1745890242877,-470.0,0.00035605,2]
[359278243,1745890242888,-150.0,0.00035605,7]
[359278244,1745890242897,-470.0,0.00035605,2]
[359278245,1745890242907,-150.0,0.00035605,7]
[359278246,1745890242916,-470.0,0.00035605,2]
[359278247,1745890242926,-470.0,0.00035605,2]
[359278248,1745890242935,-470.0,0.00035605,2]
[359278249,1745890242945,-931.37,0.00035605,2]
[359278250,1745890242954,-513.39,0.00035605,2]
[359278251,1745890242963,-1073.33,0.00035605,2]
[359278252,1745890242973,-737.23,0.00035605,2]
[359278253,1745890242985,-593.39,0.00035605,2]
[359278254,1745890242994,-470.0,0.00035605,2]
[359278255,1745890243008,-470.0,0.00035605,2]
[359278256,1745890243018,-665.68,0.00035605,2]
[359278257,1745890243027,-470.0,0.00035605,2]
[359278258,1745890243036,-470.0,0.00035605,2]
[359278259,1745890243046,-133913.62,0.00035605,2]
[359278260,1745890243055,-34985.1991133,0.00035605,2]
[359278262,1745890243065,-27178.5758365,0.00035605,2]
[359278263,1745890243075,-139940.796453,0.00035606,2]
[359278264,1745890243084,-271785.758365,0.00035606,2]
[359278265,1745890243094,-151.0,0.00035606,7]
[359278266,1745890243103,-300.0,0.00035615,10]
[359278267,1745890243113,-496.75,0.00035615,2]
[359278268,1745890243122,-588.85,0.00035615,2]
[359278269,1745890243132,-470.0,0.00035615,2]
[359278270,1745890243141,-470.0,0.00035615,2]
[359278271,1745890243151,-470.0,0.00035615,2]
[359278272,1745890243160,-623.1,0.00035615,2]
[359278273,1745890243170,-572.12,0.00035615,2]
[359278274,1745890243179,-470.0,0.00035615,2]
[359278276,1745890243188,-17884.72,0.00035615,2]
[359278277,1745890243198,-400.0,0.00035615,2]
[359278280,1745890243207,-470.0,0.00035615,2]
[359278282,1745890243216,-470.0,0.00035615,2]
[359278285,1745890243226,-470.0,0.00035615,2]
[359278286,1745890243235,-400.0,0.00035615,2]
[359278287,1745890243245,-838.2,0.00035615,2]
[359278288,1745890243257,-470.0,0.00035615,2]
[359278289,1745890243266,-470.0,0.00035615,2]
[359278290,1745890243275,-470.0,0.00035615,2]
[359278291,1745890243284,-470.0,0.00035615,2]
[359278292,1745890243293,-470.0,0.00035615,2]
[359278293,1745890243302,-1280.48,0.00035615,2]
[359278294,1745890243311,-400.0,0.00035615,2]
[359278295,1745890243321,-470.0,0.00035615,2]
[359278297,1745890243330,-470.0,0.00035615,2]
[359278298,1745890243340,-470.0,0.00035615,2]